bitfinex-derivatives/quotes_BTCF0:USTF0_20260314
["timestamp","ask_amount","ask_price","bid_price","bid_amount"]
[1773529489884,0.042292,70925.0,70923.0,0.0014]
[1773529490080,0.042295,70919.0,70903.0,0.03100438]
[1773529490280,0.042297,70916.0,70904.0,0.0014]
[1773529490486,0.042297,70916.0,70905.0,0.0014]
[1773529490797,0.03139033,70917.0,70905.0,0.0014]
[1773529490991,0.03139033,70926.0,70906.0,0.0014]
[1773529491198,0.03139033,70926.0,70907.0,0.0014]
[1773529491396,0.042299,70913.0,70908.0,0.0014]
[1773529491600,0.042299,70913.0,70909.0,0.0014]
[1773529491789,0.042299,70913.0,70910.0,0.0014]
[1773529492096,0.042299,70912.0,70911.0,0.0014]
[1773529492287,0.07287139,70914.0,70911.0,0.0014]
[1773529492483,0.042299,70912.0,70898.0,0.042307]
[1773529492683,0.03057339,70914.0,70899.0,0.0014]
[1773529492881,0.03057339,70914.0,70900.0,0.0014]
[1773529493294,0.042301,70910.0,70901.0,0.0014]
[1773529493589,0.042299,70912.0,70901.0,0.0014]
[1773529494093,0.042299,70912.0,70898.0,0.042307]
[1773529494294,0.042299,70912.0,70899.0,0.0014]
[1773529494495,0.042299,70912.0,70898.0,0.042307]
[1773529494694,0.042299,70912.0,70899.0,0.0014]
[1773529495195,0.042299,70912.0,70900.0,0.0014]
[1773529495592,0.03057339,70914.0,70893.0,0.03036806]
[1773529495593,0.0423,70910.0,70893.0,0.03036806]
[1773529495789,0.0423,70910.0,70894.0,0.0014]
[1773529496189,0.0423,70910.0,70895.0,0.0014]
[1773529496590,0.042299,70912.0,70898.0,0.042307]
[1773529497189,0.042299,70912.0,70899.0,0.0014]
[1773529497386,0.042299,70912.0,70898.0,0.042307]
[1773529497592,0.03057339,70914.0,70900.0,0.0014]
[1773529497800,0.0423,70911.0,70901.0,0.0014]
[1773529497997,0.03057339,70914.0,70902.0,0.0014]
[1773529497998,0.042301,70910.0,70902.0,0.0014]
[1773529498194,0.042301,70910.0,70903.0,0.0014]
[1773529498792,0.03057339,70922.0,70903.0,0.0014]
[1773529499099,0.03057339,70920.0,70903.0,0.0014]
[1773529499294,0.01124,70923.0,70903.0,0.0014]
[1773529499295,0.01124,70923.0,70903.0,0.03176806]
[1773529499594,0.042295,70920.0,70907.0,0.042302]
[1773529500694,0.04229,70928.0,70915.0,0.042297]
[1773529500896,0.07342593,70940.0,70916.0,0.0014]
[1773529500897,0.042292,70925.0,70916.0,0.0014]
[1773529502102,0.04229,70928.0,70916.0,0.0014]
[1773529502306,0.042288,70932.0,70916.0,0.043697]
[1773529502599,0.042289,70930.0,70916.0,0.043697]
[1773529502795,0.03057339,70936.0,70920.0,0.042294]
[1773529502995,0.19859415,70935.0,70920.0,0.042294]
[1773529503198,0.03057339,70940.0,70921.0,0.042293]
[1773529503199,0.19859415,70934.0,70921.0,0.042293]
[1773529503500,0.042286,70934.0,70920.0,0.07342593]
[1773529504700,0.042286,70934.0,70920.0,0.11571993]
[1773529505699,0.042286,70934.0,70920.0,0.11570048]
[1773529505903,0.042286,70934.0,70920.0,0.07340648]
[1773529506090,0.03057339,70951.0,70925.0,0.03036806]
[1773529506403,0.04228,70945.0,70930.0,0.10377454]
[1773529506589,0.042281,70943.0,70931.0,0.0014]
[1773529507095,0.042281,70943.0,70931.0,0.03176806]
[1773529507598,0.03057339,70951.0,70931.0,0.03176806]
[1773529507905,0.19846085,70950.0,70931.0,0.03176806]
[1773529508202,0.03057339,70948.0,70931.0,0.0014]
[1773529508400,0.19846085,70947.0,70931.0,0.0014]
[1773529508593,0.03057339,70952.0,70931.0,0.0014]
[1773529508902,0.03057339,70950.0,70931.0,0.0014]
[1773529509101,0.19840989,70949.0,70931.0,0.0014]
[1773529509404,0.19840989,70948.0,70931.0,0.0014]
[1773529509596,0.19840989,70947.0,70931.0,0.0014]
[1773529509797,0.03057339,70950.0,70931.0,0.0014]
[1773529509991,0.22893932,70949.0,70931.0,0.0014]
[1773529510199,0.22893932,70948.0,70931.0,0.0014]
[1773529510504,0.03057339,70948.0,70931.0,0.0014]
[1773529510804,0.01264,70956.0,70931.0,0.03176806]
[1773529511005,0.19832614,70955.0,70933.0,0.03036806]
[1773529511301,0.01124,70956.0,70933.0,0.03036806]
[1773529511302,0.19832614,70954.0,70933.0,0.03036806]
[1773529511515,0.042279,70947.0,70934.0,0.03036806]
[1773529512204,0.042279,70947.0,70934.0,0.07265406]
[1773529512410,0.042274,70954.0,70938.0,0.03036806]
[1773529512600,0.03057339,70955.0,70932.0,0.03036806]
[1773529513198,0.0014,70961.0,70932.0,0.03036806]
[1773529513400,0.19815092,70960.0,70940.0,0.07340648]
[1773529513600,0.19815092,70959.0,70941.0,0.0014]
[1773529513806,0.22872431,70958.0,70941.0,0.0014]
[1773529514104,0.19815092,70957.0,70941.0,0.0014]
[1773529514402,0.042274,70954.0,70941.0,0.043682]
[1773529515105,0.042274,70954.0,70941.0,0.07405006]
[1773529515301,0.042274,70955.0,70942.0,0.042281]
[1773529515606,0.042274,70955.0,70942.0,0.07264906]
[1773529515806,0.042274,70955.0,70942.0,0.03036806]
[1773529516101,0.03057339,70963.0,70942.0,0.03036806]
[1773529516102,0.042274,70954.0,70942.0,0.03036806]
[1773529516993,0.01263,70964.0,70943.0,0.0014]
[1773529516994,0.04228,70945.0,70943.0,0.0014]
[1773529517298,0.042282,70941.0,70939.0,0.0014]
[1773529517604,0.03057339,70945.0,70927.0,0.04229]
[1773529517798,0.03057339,70945.0,70928.0,0.0014]
[1773529517998,0.03057339,70945.0,70925.0,0.03036806]
[1773529518302,0.042282,70941.0,70927.0,0.04229]
[1773529518503,0.042282,70941.0,70928.0,0.042289]
[1773529518707,0.03057339,70942.0,70929.0,0.0014]
[1773529518910,0.042285,70936.0,70923.0,0.042292]
[1773529519102,0.07340648,70953.0,70925.0,0.03036806]
[1773529519103,0.07480648,70953.0,70925.0,0.03036806]
[1773529519308,0.07480648,70953.0,70927.0,0.03036806]
[1773529519309,0.03057339,70952.0,70927.0,0.03036806]
[1773529519500,0.042282,70942.0,70928.0,0.042289]
[1773529520004,0.042282,70942.0,70929.0,0.0014]
[1773529520512,0.042282,70941.0,70929.0,0.0014]
[1773529521011,0.042282,70941.0,70929.0,0.03176806]
[1773529521310,0.042282,70941.0,70929.0,0.0014]
[1773529521504,0.03166143,70946.0,70929.0,0.0014]
[1773529521706,0.03166143,70946.0,70924.0,0.02962971]
[1773529521707,0.03166143,70939.0,70915.0,0.02962971]
[1773529521910,0.03166143,70939.0,70920.0,0.042294]
[1773529522099,0.03166143,70939.0,70918.0,0.042295]
[1773529522411,0.042288,70931.0,70919.0,0.0014]
[1773529522610,0.042287,70933.0,70920.0,0.0014]
[1773529523206,0.03166143,70936.0,70910.0,0.20325833]
[1773529523207,0.042289,70929.0,70921.0,0.0014]
[1773529523414,0.042289,70929.0,70922.0,0.0014]
[1773529523602,0.042289,70929.0,70923.0,0.0014]
[1773529523798,0.042288,70931.0,70923.0,0.0014]
[1773529526408,0.042288,70932.0,70923.0,0.0014]
[1773529526708,0.042286,70934.0,70923.0,0.0014]
[1773529526912,0.042288,70931.0,70923.0,0.0014]
[1773529527295,0.042289,70930.0,70923.0,0.0014]
[1773529528999,0.042289,70929.0,70923.0,0.0014]
[1773529530805,0.04229,70928.0,70923.0,0.0014]
[1773529538815,0.042291,70927.0,70923.0,0.0014]
[1773529539017,0.03166143,70939.0,70911.0,0.25139855]
[1773529539223,0.07340648,70930.0,70909.0,0.25139855]
[1773529539410,0.03166143,70928.0,70910.0,0.0014]
[1773529539614,0.03166143,70928.0,70904.0,0.25139855]
[1773529539814,0.042297,70916.0,70905.0,0.0014]
[1773529541619,0.042296,70918.0,70905.0,0.043703]
[1773529542824,0.03166143,70928.0,70905.0,0.0014]
[1773529543425,0.03166143,70927.0,70905.0,0.0014]
[1773529543828,0.042296,70917.0,70905.0,0.0014]
[1773529544127,0.042298,70914.0,70905.0,0.0014]
[1773529547227,0.042298,70914.0,70905.0,0.0024]
[1773529547528,0.042299,70913.0,70905.0,0.001]
[1773529547729,0.042299,70913.0,70906.0,0.0014]
[1773529547931,0.042296,70917.0,70906.0,0.0014]
[1773529548118,0.042296,70917.0,70907.0,0.07340648]
[1773529548626,0.042296,70917.0,70908.0,0.0014]
[1773529548830,0.03166143,70924.0,70907.0,0.07340648]
[1773529549032,0.042297,70916.0,70908.0,0.0014]
[1773529549333,0.042298,70914.0,70908.0,0.0014]
[1773529550022,0.02989216,70918.0,70900.0,0.07340648]
[1773529550229,0.02989216,70918.0,70901.0,0.0014]
[1773529550531,0.01124,70929.0,70916.0,0.042296]
[1773529550729,0.01124,70929.0,70920.0,0.042294]
[1773529550923,0.01124,70929.0,70921.0,0.0014]
[1773529552024,0.042288,70932.0,70921.0,0.0014]
[1773529556337,0.042288,70932.0,70921.0,0.02887544]
[1773529557438,0.042285,70937.0,70924.0,0.042292]
[1773529557640,0.01124,70943.0,70927.0,0.07340648]
[1773529557833,0.01124,70943.0,70928.0,0.0014]
[1773529558026,0.042282,70941.0,70928.0,0.0014]
[1773529558227,0.042282,70941.0,70928.0,0.043689]
[1773529558731,0.042282,70941.0,70928.0,0.0014]
[1773529559634,0.042281,70944.0,70930.0,0.11569448]
[1773529559829,0.042281,70944.0,70930.0,0.14316992]
[1773529560343,0.042281,70943.0,70930.0,0.14316992]
[1773529560637,0.02925268,70956.0,70931.0,0.02747544]
[1773529560829,0.042277,70949.0,70931.0,0.02747544]
[1773529561029,0.042277,70949.0,70930.0,0.07340648]
[1773529561030,0.042279,70946.0,70932.0,0.042287]
[1773529561231,0.042279,70946.0,70933.0,0.06976144]
[1773529561425,0.02925268,70953.0,70934.0,0.042286]
[1773529561638,0.042278,70948.0,70935.0,0.0014]
[1773529562140,0.02925268,70951.0,70935.0,0.0014]
[1773529562339,0.02925268,70959.0,70935.0,0.0014]
[1773529562740,0.042278,70948.0,70935.0,0.02887544]
[1773529563235,0.042278,70948.0,70936.0,0.042285]
[1773529563441,0.02925268,70956.0,70935.0,0.07116044]
[1773529563631,0.042277,70949.0,70935.0,0.07116044]
[1773529564442,0.042276,70951.0,70937.0,0.042284]
[1773529564640,0.042276,70951.0,70938.0,0.042283]
[1773529566441,0.042276,70951.0,70938.0,0.06975844]
[1773529567731,0.02925268,70960.0,70940.0,0.10084088]
[1773529567933,0.042275,70953.0,70940.0,0.11564744]
[1773529568135,0.042276,70952.0,70938.0,0.042283]
[1773529568346,0.042276,70952.0,70939.0,0.02747544]
[1773529569338,0.07336544,70980.0,70939.0,0.02747544]
[1773529569339,0.00165804,70988.0,70960.0,0.02747544]
[1773529569539,0.00165804,70988.0,70940.0,0.35654667]
[1773529569540,0.0014204,71010.0,70972.0,0.042263]
[1773529569737,0.02020268,71038.0,70986.0,0.07336544]
[1773529569944,0.02925268,71037.0,71011.0,0.02747544]
[1773529570133,0.02925268,71037.0,70987.0,2.2347]
[1773529570134,0.02925268,71034.0,71012.0,0.0014]
[1773529570334,0.11242473,71038.0,70995.0,0.00015886]
[1773529570335,0.02925268,71036.0,71013.0,0.0014]
[1773529570533,0.02925268,71036.0,71014.0,0.0014]
[1773529570738,0.03457421,71039.0,71014.0,0.0014]
[1773529570739,0.038832,71025.0,71014.0,0.02887544]
[1773529571029,0.042231,71026.0,71014.0,0.02887544]
[1773529571237,0.14167741,71039.0,71016.0,0.02747544]
[1773529571443,0.042226,71035.0,71016.0,0.02747544]
[1773529571636,0.042225,71037.0,71020.0,0.02747544]
[1773529571845,0.02925268,71046.0,71022.0,0.02747544]
[1773529572138,0.00170137,71055.0,71032.0,0.042227]
[1773529572441,0.02925268,71053.0,71028.0,0.02747544]
[1773529572636,0.02925268,71039.0,71008.0,0.02747544]
[1773529572837,0.02925268,71037.0,71009.0,0.0014]
[1773529573044,0.02925268,71034.0,71010.0,0.02747544]
[1773529573349,0.02925268,71029.0,71011.0,0.0014]
[1773529573644,0.042239,71013.0,71012.0,0.0014]
[1773529573839,0.14167741,71013.0,70996.0,0.14076477]
[1773529574032,0.02925268,71012.0,70997.0,0.0014]
[1773529574440,0.02925268,71012.0,70989.0,0.02747544]
[1773529574738,0.042243,71007.0,70996.0,0.0014]
[1773529574944,0.042243,71007.0,70997.0,0.0014]
[1773529575347,0.042245,71004.0,70997.0,0.0014]
[1773529575639,0.042246,71001.0,70998.0,0.0014]
[1773529575837,0.07149968,71000.0,70983.0,0.02747544]
[1773529576037,0.07149968,71000.0,70984.0,0.043656]
[1773529576244,0.11242473,71019.0,70983.0,1.52747544]
[1773529576245,0.042245,71003.0,70986.0,0.042255]
[1773529576438,0.02925268,71004.0,70983.0,1.52747544]
[1773529576439,0.042246,71001.0,70987.0,0.0014]
[1773529576635,0.042246,71001.0,70899.0,0.52183044]
[1773529576636,0.14167741,71003.0,70988.0,0.0014]
[1773529576835,0.04236934,71002.0,70989.0,0.0014]
[1773529577139,0.04236934,71002.0,70990.0,0.0014]
[1773529577348,0.04236934,71002.0,70991.0,0.0014]
[1773529577540,0.042247,71000.0,70992.0,0.0014]
[1773529577838,0.042247,71000.0,70993.0,0.0014]
[1773529578039,0.02925268,70998.0,70983.0,0.001]
[1773529578343,0.02925268,70998.0,70984.0,0.00144]
[1773529578549,0.02925268,70996.0,70974.0,0.02747544]
[1773529578739,0.11242473,71000.0,70975.0,0.00144]
[1773529578945,0.02925268,70988.0,70976.0,0.00144]
[1773529579246,0.02925268,70988.0,70972.0,0.042263]
[1773529579247,0.02925268,70988.0,70977.0,0.00144]
[1773529579747,0.02925268,70988.0,70969.0,0.02747544]
[1773529579748,0.11242473,70987.0,70978.0,0.00144]
[1773529579939,0.18393241,70987.0,70979.0,0.00144]
[1773529580242,0.02925268,70984.0,70980.0,0.00144]
[1773529580545,0.02925268,70984.0,70962.0,0.31004]
[1773529580546,0.02925268,70978.0,70976.0,0.00144]
[1773529580740,0.07151268,70978.0,70977.0,0.00144]
[1773529580938,0.04226,70978.0,70977.0,9e-08]
[1773529581138,0.07151268,70978.0,70977.0,9e-08]
[1773529581833,0.02925268,70978.0,70977.0,9e-08]
[1773529582036,0.02925268,70978.0,70976.0,0.00144]
[1773529582242,0.04855279,70976.0,70975.0,0.00144]
[1773529583541,0.04855279,70974.0,70961.0,0.04227]
[1773529583742,0.04855279,70974.0,70962.0,0.00144]
[1773529583944,0.04855279,70974.0,70963.0,0.00144]
[1773529584851,0.04855279,70974.0,70964.0,0.00144]
[1773529585338,0.04855279,70974.0,70965.0,0.00144]
[1773529585534,0.09081479,70974.0,70966.0,0.00144]
[1773529585734,0.11242473,70975.0,70951.0,0.042275]
[1773529585735,0.04855279,70973.0,70951.0,0.042275]
[1773529585935,0.04855279,70969.0,70953.0,0.042275]
[1773529586136,0.00015886,70983.0,70955.0,0.04791925]
[1773529586338,0.04871165,70983.0,70957.0,0.04791925]
[1773529586540,0.04871165,70983.0,70959.0,0.04791925]
[1773529586735,0.042258,70981.0,70964.0,0.042268]
[1773529586935,0.04855279,70980.0,70965.0,0.00144]
[1773529587951,0.04226,70978.0,70965.0,0.00144]
[1773529588453,0.04855279,71008.0,70984.0,0.04791925]
[1773529588653,0.04855279,71008.0,70985.0,0.00144]
[1773529588854,0.042249,70997.0,70985.0,0.00144]
[1773529589252,0.09147818,71020.0,70985.0,0.00144]
[1773529589253,0.04855279,71005.0,70985.0,0.00144]
[1773529589452,0.00015321,71004.0,70985.0,0.04935925]
[1773529589954,0.00015321,71004.0,70991.0,0.042252]
[1773529590259,0.00015321,71004.0,70992.0,0.00144]
[1773529590457,2.1e-07,71004.0,70997.0,0.042248]
[1773529590663,2.1e-07,71004.0,70993.0,0.04791925]
[1773529590664,0.04855279,71016.0,70999.0,0.042247]
[1773529590848,0.04855279,71021.0,70994.0,0.04791925]
[1773529591052,0.04855279,71021.0,70992.0,0.00144]
[1773529591053,0.04855279,71021.0,71001.0,0.09016525]
[1773529591357,0.04855279,71021.0,71003.0,0.04791925]
[1773529591545,0.04855279,71021.0,70981.0,0.06114523]
[1773529591546,0.042233,71023.0,71004.0,0.04935925]
[1773529591755,0.042233,71023.0,71005.0,0.00144]
[1773529591952,0.042234,71022.0,71007.0,0.042242]
[1773529592342,0.001,71021.0,71008.0,0.042241]
[1773529592550,0.04293192,71031.0,71010.0,0.04791925]
[1773529592757,0.01192392,71031.0,71012.0,0.04791925]
[1773529592947,0.01192392,71031.0,71017.0,0.042236]
[1773529593146,0.01192392,71031.0,71018.0,0.00144]
[1773529593554,0.01192392,71031.0,71019.0,0.042235]
[1773529593750,0.01192392,71031.0,71021.0,0.042234]
[1773529593950,0.01192392,71031.0,71020.0,0.04791925]
[1773529594157,0.00070392,71031.0,71018.0,0.00144]
[1773529594958,0.042229,71030.0,71018.0,0.00144]
[1773529595650,0.042231,71028.0,71018.0,0.00144]
[1773529597059,0.00070392,71031.0,71018.0,0.00144]
[1773529597656,0.042229,71029.0,71012.0,0.042239]
[1773529597959,0.04293192,71031.0,71016.0,0.042237]
[1773529598155,0.04293192,71031.0,71017.0,0.29732994]
[1773529598350,0.04855279,71030.0,71018.0,0.29732994]
[1773529598553,0.04855279,71026.0,71019.0,0.00144]
[1773529598857,0.042235,71020.0,71011.0,0.00288]
[1773529599054,0.042235,71020.0,71012.0,0.00144]
[1773529599248,0.042236,71018.0,71012.0,0.00144]
[1773529599449,0.042236,71018.0,71013.0,0.00144]
[1773529599656,0.04855279,71023.0,71014.0,0.00144]
[1773529599864,0.04855279,71023.0,71002.0,0.042245]
[1773529599865,0.04855279,71023.0,71015.0,0.00144]
[1773529600061,0.04855279,71023.0,71002.0,0.042245]
[1773529600062,0.04855279,71023.0,71016.0,0.00144]
[1773529600251,0.04855279,71023.0,71017.0,0.00144]
[1773529600455,0.042237,71017.0,71002.0,0.042245]
[1773529600659,0.042237,71017.0,71003.0,0.00144]
[1773529600859,0.042237,71017.0,71011.0,0.00576]
[1773529601164,0.042237,71017.0,71012.0,0.00144]
[1773529602166,0.042235,71019.0,71012.0,0.00144]
[1773529602559,0.04855279,71030.0,71012.0,0.00144]
[1773529603561,0.042229,71030.0,71012.0,0.04935925]
[1773529603763,0.04223,71029.0,71015.0,0.042237]
[1773529604063,0.04223,71028.0,71015.0,0.042237]
[1773529604249,0.04223,71028.0,71020.0,0.00576]
[1773529604454,0.04293292,71031.0,71021.0,0.00144]
[1773529605357,0.09147818,71060.0,71023.0,0.042233]
[1773529605556,0.04999279,71054.0,71023.0,0.042233]
[1773529605758,0.042225,71036.0,71023.0,0.042233]
[1773529605956,0.04855279,71043.0,71023.0,0.042233]
[1773529605957,0.042225,71038.0,71023.0,0.042233]
[1773529606267,0.042226,71035.0,71024.0,0.00144]
[1773529609355,0.042226,71035.0,71022.0,0.042233]
[1773529609664,0.042226,71035.0,71025.0,0.00144]
[1773529611162,0.042226,71035.0,71022.0,0.042233]
[1773529611372,0.042229,71031.0,71023.0,0.00144039]
[1773529611709,0.042229,71031.0,71011.0,0.16637904]
[1773529611710,0.04807577,71036.0,71018.0,0.042236]
[1773529611961,0.042226,71035.0,71021.0,0.042234]
[1773529612551,0.00170137,71055.0,71007.0,0.127623]
[1773529612552,0.005,71102.0,71028.0,0.281533]
[1773529612753,0.00070293,71131.0,71100.0,0.2]
[1773529612952,0.70482286,71124.0,71100.0,0.2]
[1773529613152,0.05315093,71122.0,71101.0,0.00144]
[1773529613360,0.00844325,71122.0,71101.0,0.05371]
[1773529613561,0.042173,71125.0,71106.0,0.05227]
[1773529613862,0.00070293,71131.0,71107.0,0.05371]
[1773529613863,0.042178,71116.0,71107.0,0.05371]
[1773529614060,0.042183,71107.0,71100.0,0.2]
[1773529614256,0.05315093,71120.0,71101.0,0.05371]
[1773529614461,0.70482286,71120.0,71102.0,0.05227]
[1773529614758,0.042177,71118.0,71102.0,0.05227]
[1773529614959,0.042179,71115.0,71103.0,0.14061632]
[1773529615164,0.05315093,71122.0,71100.0,0.12400063]
[1773529615360,0.05315093,71113.0,71101.0,0.00144]
[1773529615666,0.06478804,71129.0,71088.0,0.12460828]
[1773529615667,0.05315093,71105.0,71088.0,0.12460828]
[1773529615866,0.05315093,71105.0,71081.0,0.05227]
[1773529616168,0.05315093,71094.0,71082.0,0.00144]
[1773529616466,0.05315093,71094.0,71065.0,0.30976]
[1773529616467,0.05315093,71082.0,71061.0,0.30972]
[1773529616774,0.05315093,71080.0,71077.0,0.00144]
[1773529616966,0.05315093,71080.0,71062.0,0.042209]
[1773529617169,0.05315093,71080.0,71063.0,0.00144]
[1773529617670,0.00012629,71079.0,71064.0,0.14068852]
[1773529618059,0.05315093,71078.0,71059.0,0.05227]
[1773529618259,0.05315093,71078.0,71060.0,0.00144]
[1773529618467,0.05315093,71078.0,71062.0,0.04221]
[1773529618860,0.65167193,71078.0,71064.0,0.042208]
[1773529619054,0.00012629,71079.0,71065.0,0.00144]
[1773529619261,0.65179822,71079.0,71066.0,0.00144]
[1773529620871,0.09535193,71078.0,71067.0,0.00144]
[1773529621075,0.65179822,71079.0,71068.0,0.00144]
[1773529621263,0.042201,71077.0,71069.0,0.00144]
[1773529621466,0.05315093,71072.0,71052.0,0.05227]
[1773529621773,0.042206,71069.0,71053.0,0.00144]
[1773529621963,0.042206,71069.0,71054.0,0.00144]
[1773529622273,0.042207,71068.0,71054.0,0.00144]
[1773529622566,0.54243464,71071.0,71055.0,0.094484]
[1773529622766,0.54243464,71071.0,71055.0,0.23520618]
[1773529623273,0.54243464,71071.0,71055.0,0.18293618]
[1773529624371,0.54243464,71071.0,71055.0,0.14072218]
[1773529625073,0.05315093,71069.0,71055.0,0.14072218]
[1773529625270,0.05315093,71069.0,71046.0,0.05227]
[1773529625472,0.05315093,71066.0,71047.0,0.27045905]
[1773529625668,0.54243464,71068.0,71048.0,0.00144]
[1773529625669,0.05315093,71057.0,71048.0,0.00144]
[1773529625976,0.0001161,71056.0,71048.0,0.00144]
[1773529626363,0.0001161,71056.0,71049.0,0.00144]
[1773529626969,0.54243464,71055.0,71050.0,0.00144]
[1773529627167,0.05315093,71054.0,71051.0,0.00144]
[1773529627364,0.05315093,71054.0,71043.0,0.00015816]
[1773529627563,0.05315093,71054.0,71030.0,0.16563513]
[1773529627771,0.05315093,71046.0,71031.0,0.29407902]
[1773529627969,0.05315093,71053.0,71042.0,0.042222]
[1773529628270,0.05315093,71053.0,71043.0,0.00144]
[1773529628466,0.05315093,71053.0,71044.0,0.00144]
[1773529628766,0.54243464,71052.0,71044.0,0.00144]
[1773529631368,0.05315093,71051.0,71044.0,0.00144]
[1773529632574,0.09536793,71051.0,71045.0,0.00144]
[1773529632775,0.05315093,71050.0,71046.0,0.00144]
[1773529633068,0.05315093,71050.0,71047.0,0.00144]
[1773529633267,0.05315093,71045.0,71031.0,0.1407509]
[1773529633467,0.05315093,71045.0,71032.0,0.33698862]
[1773529633675,0.05315093,71043.0,71033.0,0.29476162]
[1773529633873,0.05315093,71043.0,71031.0,0.00070392]
[1773529634070,0.05315093,71040.0,71032.0,0.00144]
[1773529634374,0.54243464,71044.0,71031.0,0.00070392]
[1773529634579,0.05315093,71039.0,71033.0,0.00144]
[1773529634775,0.042224,71038.0,71033.0,0.00144]
[1773529635075,0.05315093,71037.0,71034.0,0.00144]
[1773529635377,0.09537593,71037.0,71032.0,0.001]
[1773529635678,0.05315093,71036.0,71033.0,0.00144]
[1773529635877,0.05315093,71036.0,71033.0,0.00244]
[1773529636078,0.05315093,71036.0,71033.0,0.001]
[1773529636267,0.05315093,71036.0,71018.0,0.16581575]
[1773529636473,0.59558557,71035.0,71019.0,0.00144]
[1773529636674,0.00014863,71034.0,71020.0,0.00144]
[1773529637573,0.05315093,71032.0,71018.0,0.00018062]
[1773529637872,0.54243464,71033.0,71022.0,0.042233]
[1773529638278,0.09537993,71031.0,71020.0,0.002]
[1773529638470,0.05315093,71031.0,71024.0,0.042232]
[1773529639177,0.05315093,71029.0,71018.0,0.00018062]
[1773529639474,0.05315093,71029.0,71020.0,0.042235]
[1773529639776,0.05315093,71029.0,71019.0,0.00144]
[1773529639970,0.05315093,71040.0,71019.0,0.00144]
[1773529640171,0.05315093,71040.0,71019.0,0.05371]
[1773529640577,0.05315093,71040.0,71029.0,0.042229]
[1773529640780,0.05315093,71040.0,71030.0,0.00144]
[1773529640965,9.868e-05,71039.0,71030.0,0.00144]
[1773529641165,0.05324961,71039.0,71030.0,0.00144]
[1773529643569,9.868e-05,71039.0,71030.0,0.00144]
[1773529643774,0.09111983,71048.0,71035.0,0.042225]
[1773529644168,0.00414715,71034.0,71023.0,0.16578868]
[1773529644374,0.07989983,71047.0,71024.0,0.00144]
[1773529644776,0.042229,71030.0,71024.0,0.00144]
[1773529645172,0.12212883,71030.0,71018.0,0.00018062]
[1773529645373,0.07989983,71030.0,71019.0,0.00144]
[1773529645675,0.07989983,71030.0,71007.0,0.07930166]
[1773529645676,0.07989983,71030.0,71020.0,0.00144]
[1773529645870,0.07989983,71030.0,71005.0,0.24847721]
[1773529646067,0.07989983,71030.0,71007.0,0.02344282]
[1773529646272,0.07989983,71040.0,71009.0,0.07930166]
[1773529646473,0.07989983,71036.0,71024.0,0.042232]
[1773529646674,0.07989983,71031.0,71025.0,0.00144]
[1773529646880,0.07989983,71031.0,71026.0,0.00144]
[1773529647079,8.972e-05,71046.0,71027.0,0.00144]
[1773529647275,0.12212883,71029.0,71014.0,0.042238]
[1773529647481,0.07989983,71030.0,71015.0,0.00144]
[1773529647679,0.07989983,71030.0,71016.0,0.00144]
[1773529647877,0.07989983,71030.0,71017.0,0.00144]
[1773529648078,0.07989983,71029.0,71018.0,0.00144]
[1773529648382,0.07989983,71027.0,71019.0,0.00144]
[1773529648583,0.00016761,71026.0,71020.0,0.00144]
[1773529649177,0.00016761,71026.0,71021.0,0.00144]
[1773529649380,0.01122,71048.0,71021.0,0.00144]
[1773529649581,0.07989983,71047.0,71022.0,0.00144]
[1773529649778,0.12212383,71039.0,71024.0,0.042232]
[1773529649986,0.07989983,71035.0,71023.0,0.00144]
[1773529650384,0.00010273,71034.0,71023.0,0.00144]
[1773529651179,0.08000256,71034.0,71023.0,0.00144]
[1773529651384,0.08000256,71034.0,71023.0,0.043673]
[1773529651785,0.08000256,71034.0,71023.0,0.00144]
[1773529652881,0.08000256,71034.0,71024.0,0.00144]
[1773529654390,0.042227,71033.0,71024.0,0.00144]
[1773529654785,0.08000256,71034.0,71024.0,0.00144]
[1773529655391,0.07989983,71031.0,71023.0,0.00144]
[1773529657691,0.04232973,71034.0,71023.0,0.00144]
[1773529659977,0.07989983,71033.0,71023.0,0.00144]
[1773529661090,0.07989983,71033.0,71011.0,0.30962236]
[1773529661091,0.07989983,71033.0,71008.0,0.00144]
[1773529661296,0.07989983,71020.0,71009.0,0.00144]
[1773529661798,0.07989983,71020.0,71005.0,0.042243]
[1773529661989,0.07989983,71020.0,70999.0,0.30962236]
[1773529662297,0.07989983,71014.0,71000.0,0.00144]
[1773529662589,0.00010273,71013.0,71000.0,0.00144]
[1773529662792,0.08000256,71013.0,71001.0,0.00144]
[1773529663092,0.07989983,71011.0,71001.0,0.00144]
[1773529663390,0.07989983,71011.0,70995.0,0.00012568]
[1773529663391,0.07989983,71010.0,71000.0,0.00144]
[1773529663597,0.07989983,71009.0,71000.0,0.00144]
[1773529664093,0.07989983,71008.0,70996.0,0.042249]
[1773529664290,0.07989983,71008.0,70996.0,0.043689]
[1773529664592,0.07989983,71008.0,70997.0,0.00144]
[1773529664995,0.07989983,71011.0,70996.0,0.00144]
[1773529665383,0.07989983,71011.0,70995.0,0.00012568]
[1773529665591,0.07989983,71011.0,70995.0,0.00156568]
[1773529665787,0.07989983,71007.0,70995.0,0.04381468]
[1773529666097,0.07989983,71023.0,70996.0,0.07930166]
[1773529666286,0.01122,71028.0,70996.0,0.07930166]
[1773529666287,0.07989983,71019.0,71005.0,0.042243]
[1773529666486,0.00144,71018.0,71005.0,0.042243]
[1773529666689,0.08133983,71018.0,71005.0,0.042243]
[1773529666982,0.01122,71028.0,71002.0,0.08074166]
[1773529666983,0.08133983,71023.0,71002.0,0.08074166]
[1773529667191,0.07989983,71023.0,71002.0,0.00144]
[1773529667389,0.07989983,71023.0,71003.0,0.07930166]
[1773529667899,9.6e-07,71028.0,71023.0,0.042233]
[1773529668100,0.12212583,71036.0,71023.0,0.042233]
[1773529669490,0.07989983,71036.0,71022.0,0.00144]
[1773529669682,0.08089983,71036.0,71022.0,0.00144]
[1773529670186,0.08089983,71036.0,71023.0,0.042233]
[1773529670387,0.08089983,71036.0,71024.0,0.042232]
[1773529670594,0.07989983,71036.0,71024.0,0.042232]
[1773529671303,0.042225,71038.0,71024.0,0.042232]
[1773529671602,0.01122,71047.0,71023.0,0.08689022]
[1773529671896,0.04222,71045.0,71023.0,0.08689022]